bitfinex/quotes_BTCUSD_20250903
["timestamp","ask_amount","ask_price","bid_price","bid_amount"]
[1756867208667,1.22585188,111430.0,111420.0,8.399e-05]
[1756867209123,1.22585188,111430.0,111420.0,0.00108399]
[1756867210242,1.31697489,111430.0,111420.0,0.00108399]
[1756867210660,0.89438743,111430.0,111420.0,0.00108399]
[1756867210866,1.0731244,111430.0,111420.0,0.00108399]
[1756867211075,1.2258044,111430.0,111420.0,0.00108399]
[1756867212104,1.22578761,111430.0,111420.0,0.00108399]
[1756867213607,1.26667304,111430.0,111420.0,0.00108399]
[1756867217047,1.26666685,111430.0,111420.0,0.00108399]
[1756867217293,1.33771388,111430.0,111420.0,0.00108399]
[1756867217558,1.80641492,111430.0,111420.0,0.00108399]
[1756867217815,1.81661472,111430.0,111420.0,1e-08]
[1756867218064,1.83944059,111430.0,111420.0,1e-08]
[1756867219073,1.76839356,111430.0,111420.0,1e-08]
[1756867219578,1.87455593,111430.0,111420.0,1e-08]
[1756867222269,2.82589322,111430.0,111420.0,1e-08]
[1756867223544,2.90014408,111430.0,111420.0,1e-08]
[1756867224455,2.92343179,111430.0,111420.0,1e-08]
[1756867225173,3.01534778,111430.0,111420.0,1e-08]
[1756867225618,2.99206007,111430.0,111420.0,1e-08]
[1756867225820,3.01534778,111430.0,111420.0,1e-08]
[1756867226029,2.99206007,111430.0,111420.0,1e-08]
[1756867226691,3.0242633,111430.0,111420.0,1e-08]
[1756867227567,3.0252633,111430.0,111420.0,1e-08]
[1756867227753,0.20047203,111400.0,111390.0,0.07709631]
[1756867228006,1.39632531,111400.0,111390.0,0.07937227]
[1756867228431,1.4233183,111400.0,111390.0,0.07937227]
[1756867228645,1.46331681,111400.0,111390.0,0.00582596]
[1756867229296,1.46431681,111400.0,111390.0,0.00982596]
[1756867229489,1.46431681,111400.0,111390.0,0.01182596]
[1756867230683,1.46628681,111400.0,111390.0,0.01182596]
[1756867231291,1.46431681,111400.0,111390.0,0.01182596]
[1756867232112,1.46628681,111400.0,111390.0,0.01182596]
[1756867232355,1.46628681,111400.0,111390.0,0.00867596]
[1756867233100,1.46628681,111400.0,111390.0,0.01182596]
[1756867234006,1.31171681,111400.0,111390.0,0.01182596]
[1756867234225,0.32038101,111400.0,111390.0,0.03555596]
[1756867234437,1.01528988,111400.0,111390.0,0.03555596]
[1756867235478,0.86268988,111400.0,111390.0,0.03555596]
[1756867235624,1.01528988,111400.0,111390.0,0.03555596]
[1756867236463,1.33240231,111400.0,111390.0,0.03555596]
[1756867236662,0.2075262,111400.0,111390.0,0.03555596]
[1756867236860,0.17953085,111410.0,111390.0,0.28062965]
[1756867237068,0.52534432,111410.0,111400.0,0.02688]
[1756867237334,0.02698552,111410.0,111400.0,0.02903]
[1756867237545,0.31711243,111410.0,111400.0,0.20856321]
[1756867237754,0.33805125,111410.0,111400.0,0.20856321]
[1756867238176,0.31711243,111410.0,111400.0,0.20856321]
[1756867238382,0.31811243,111410.0,111400.0,0.21056321]
[1756867238594,0.33905125,111410.0,111400.0,0.21056321]
[1756867238780,0.33805125,111410.0,111400.0,0.20856321]
[1756867239007,0.001,111410.0,111400.0,0.21456321]
[1756867239446,0.49762952,111410.0,111400.0,0.21456321]
[1756867239993,0.49762952,111410.0,111400.0,0.36712321]
[1756867240201,0.31811243,111410.0,111400.0,0.36712321]
[1756867250642,0.001,111410.0,111400.0,0.77615163]
[1756867256449,0.001,111410.0,111400.0,1.09326406]
[1756867256863,0.001,111410.0,111400.0,1.46024285]
[1756867257781,0.001,111410.0,111400.0,1.52444863]
[1756867257994,0.001,111410.0,111400.0,0.89010377]
[1756867258200,0.001,111410.0,111400.0,1.46012285]
[1756867258971,0.0394307,111460.0,111450.0,0.17945266]
[1756867259175,0.29610914,111460.0,111450.0,0.15244]
[1756867259391,0.95150605,111460.0,111450.0,0.15244]
[1756867259710,1.16809458,111460.0,111450.0,0.15244]
[1756867260062,1.1890334,111460.0,111450.0,0.15244]
[1756867260291,1.18950142,111460.0,111450.0,0.15244]
[1756867260514,0.55527656,111460.0,111450.0,0.15244]
[1756867260768,1.19350142,111460.0,111450.0,0.15244]
[1756867261230,0.17945266,111450.0,111430.0,0.26392406]
[1756867261446,0.49828061,111450.0,111440.0,0.42574476]
[1756867261663,0.49854509,111450.0,111440.0,0.42574476]
[1756867261866,0.49854509,111450.0,111440.0,0.09387599]
[1756867262071,0.49854509,111450.0,111440.0,0.24627599]
[1756867262072,0.50177509,111450.0,111440.0,0.24627599]
[1756867262321,0.49854509,111450.0,111440.0,0.24627599]
[1756867262899,0.50177509,111450.0,111440.0,0.09387599]
[1756867263101,0.50177509,111450.0,111440.0,0.24851934]
[1756867263316,0.49854509,111450.0,111440.0,0.09387599]
[1756867263764,0.49854509,111450.0,111440.0,0.24851934]
[1756867263970,0.49854509,111450.0,111440.0,0.24627599]
[1756867264177,0.49854509,111450.0,111440.0,0.24727599]
[1756867264389,0.49854509,111450.0,111440.0,0.09487599]
[1756867264589,0.49854509,111450.0,111440.0,0.24951934]
[1756867264789,0.49854509,111450.0,111440.0,0.42674476]
[1756867265519,0.49854509,111450.0,111440.0,0.24727599]
[1756867266810,0.50177509,111450.0,111440.0,0.24727599]
[1756867268423,0.18466266,111450.0,111440.0,0.24727599]
[1756867268656,0.50177509,111450.0,111440.0,0.24727599]
[1756867270589,0.18143266,111450.0,111440.0,0.24727599]
[1756867270808,0.49858509,111450.0,111440.0,0.25051599]
[1756867271045,0.49858509,111450.0,111440.0,0.24727599]
[1756867272647,0.50177509,111450.0,111440.0,0.09291599]
[1756867272855,0.50177509,111450.0,111440.0,0.24527599]
[1756867277246,0.50177509,111450.0,111440.0,0.24744599]
[1756867277717,0.18466266,111450.0,111440.0,0.24744599]
[1756867277933,0.50177509,111450.0,111440.0,0.24744599]
[1756867278164,0.20084345,111460.0,111440.0,0.74726719]
[1756867278408,0.00046802,111460.0,111450.0,0.18493581]
[1756867278624,0.00046802,111460.0,111450.0,0.27677865]
[1756867279318,0.00046802,111460.0,111450.0,0.59389108]
[1756867280398,0.00146802,111460.0,111450.0,0.59389108]
[1756867280809,0.00046802,111460.0,111450.0,0.59389108]
[1756867281015,0.00146802,111460.0,111450.0,0.59389108]
[1756867281225,0.00146802,111460.0,111450.0,0.61647108]
[1756867281663,0.00146802,111460.0,111450.0,0.72136162]
[1756867283128,0.00146802,111460.0,111450.0,0.72336162]
[1756867283338,0.00046802,111460.0,111450.0,0.72336162]
[1756867283753,0.00046802,111460.0,111450.0,0.72136162]
[1756867284012,0.00046802,111460.0,111450.0,0.72936162]
[1756867286183,0.00046802,111460.0,111450.0,0.88164162]
[1756867287690,0.00046802,111460.0,111450.0,1.22164162]
[1756867287920,0.00046802,111460.0,111450.0,1.24860393]
[1756867288537,0.00046802,111460.0,111450.0,1.64860393]
[1756867294794,0.00046802,111460.0,111450.0,1.71280971]
[1756867295281,0.00319,111500.0,111490.0,0.17938828]
[1756867295511,0.00521,111500.0,111490.0,0.48898662]
[1756867295762,0.00521,111500.0,111490.0,0.48674427]
[1756867296530,0.0063359,111500.0,111490.0,0.49560919]
[1756867299739,0.0031459,111500.0,111490.0,0.49772919]
[1756867299956,0.0063259,111500.0,111490.0,0.49560919]
[1756867301388,0.0063259,111500.0,111490.0,0.48670427]
[1756867302243,0.0063259,111500.0,111490.0,0.49556573]
[1756867302827,0.0063259,111500.0,111490.0,0.49768573]
[1756867308012,0.0031459,111500.0,111490.0,0.50077573]
[1756867309060,0.0063259,111500.0,111490.0,0.49768573]
[1756867309540,0.0031459,111500.0,111490.0,0.49768573]
[1756867310623,0.0031459,111500.0,111490.0,0.48874427]
[1756867310874,0.0063259,111500.0,111490.0,0.48874427]
[1756867311098,0.18569809,111500.0,111490.0,0.48662427]
[1756867311326,0.0063259,111500.0,111490.0,0.48662427]
[1756867312782,0.0063259,111500.0,111490.0,0.48874427]
[1756867316165,0.0031459,111500.0,111490.0,0.48874427]
[1756867317347,0.0063259,111500.0,111490.0,0.48874427]
[1756867317995,0.0031459,111500.0,111490.0,0.48874427]
[1756867320517,0.0031459,111500.0,111490.0,0.49183427]
[1756867321627,0.0031459,111500.0,111490.0,0.48874427]
[1756867322320,0.0063259,111500.0,111490.0,0.48874427]
[1756867323013,0.0031459,111500.0,111490.0,0.48874427]
[1756867324240,0.0031459,111500.0,111490.0,0.49183427]
[1756867325592,0.0011259,111500.0,111490.0,0.49183427]
[1756867329944,0.0032159,111500.0,111490.0,0.49183427]
[1756867330154,0.0032159,111500.0,111490.0,0.48866427]
[1756867330396,0.0032159,111500.0,111490.0,0.49185427]
[1756867331055,0.0032159,111500.0,111490.0,0.49181427]
[1756867331520,0.0032159,111500.0,111490.0,0.48862427]
[1756867331695,0.0032159,111500.0,111490.0,0.49181427]
[1756867332160,0.0032159,111500.0,111490.0,0.48862427]
[1756867333229,0.0062759,111500.0,111490.0,0.48650427]
[1756867334076,0.0062759,111500.0,111490.0,0.48851427]
[1756867334252,0.0062759,111500.0,111490.0,0.55272005]
[1756867334489,0.0062759,111500.0,111490.0,0.40076005]
[1756867334694,0.0062759,111500.0,111490.0,0.55272005]
[1756867335898,0.0032159,111500.0,111490.0,0.55272005]
[1756867336726,0.42521887,111500.0,111490.0,0.55272005]
[1756867337187,0.60765106,111500.0,111490.0,0.21936177]
[1756867337395,0.60765106,111500.0,111490.0,0.30711599]
[1756867339314,0.60765106,111500.0,111490.0,0.47705164]
[1756867339728,0.42827887,111500.0,111490.0,0.47705164]
[1756867339949,0.42827887,111500.0,111490.0,0.47906164]
[1756867340165,0.42521887,111500.0,111490.0,0.47906164]
[1756867340397,0.0011259,111500.0,111490.0,0.48225164]
[1756867340635,0.42312887,111500.0,111490.0,0.48225164]
[1756867341539,0.63394584,111500.0,111490.0,0.48225164]
[1756867342228,0.63603584,111500.0,111490.0,0.47906164]
[1756867342449,0.63909584,111500.0,111490.0,0.47906164]
[1756867342677,0.63394584,111500.0,111490.0,0.54645742]
[1756867343778,0.0011259,111500.0,111490.0,0.54645742]
[1756867344000,0.63603584,111500.0,111490.0,0.54645742]
[1756867347148,0.81846803,111500.0,111490.0,0.54121742]
[1756867347351,1.134878,111500.0,111490.0,0.54322742]
[1756867347960,1.134878,111500.0,111490.0,0.47902164]
[1756867348376,0.18564809,111500.0,111490.0,0.47898164]
[1756867348575,1.134878,111500.0,111490.0,0.47898164]
[1756867349457,1.134878,111500.0,111490.0,0.47697164]
[1756867351935,1.134878,111500.0,111490.0,0.47898164]
[1756867352550,0.81846803,111500.0,111490.0,0.47898164]
[1756867353631,0.63394584,111500.0,111490.0,0.48217164]
[1756867353848,0.0011259,111500.0,111490.0,0.48217164]
[1756867354074,0.63394584,111500.0,111490.0,0.48217164]
[1756867356966,0.81540803,111500.0,111490.0,0.29959336]
[1756867357170,0.81846803,111500.0,111490.0,0.29959336]
[1756867357395,0.81846803,111500.0,111490.0,0.47898164]
[1756867360800,0.81846803,111500.0,111490.0,0.47697164]
[1756867361655,0.81846803,111500.0,111490.0,0.47905164]
[1756867362523,0.81846803,111500.0,111490.0,0.54325742]
[1756867363104,0.81846803,111500.0,111490.0,0.54117742]
[1756867363260,0.81846803,111500.0,111490.0,0.54113742]
[1756867363465,0.63394584,111500.0,111490.0,0.54616742]
[1756867367428,0.63394584,111500.0,111490.0,0.57312568]
[1756867371362,0.0011259,111500.0,111490.0,0.57312568]
[1756867371575,0.0011259,111500.0,111490.0,0.8489199]
[1756867371792,0.0011259,111500.0,111490.0,0.92887552]
[1756867372638,0.0001259,111500.0,111490.0,0.92987552]
[1756867373493,0.0001259,111500.0,111490.0,0.93187552]
[1756867373701,0.0001259,111500.0,111490.0,1.24828549]
[1756867374224,0.0001259,111500.0,111490.0,1.24728549]
[1756867375054,0.0001259,111500.0,111490.0,1.24928549]
[1756867375836,0.0001259,111500.0,111490.0,0.93287552]
[1756867376252,0.31866587,111500.0,111490.0,0.77808552]
[1756867376470,0.63824584,111500.0,111490.0,0.91214492]
[1756867376666,0.0054259,111500.0,111490.0,0.91214492]
[1756867376882,0.63824584,111500.0,111490.0,0.91422492]
[1756867378182,0.0022559,111500.0,111490.0,0.91422492]
[1756867378395,0.63507584,111500.0,111490.0,0.91717492]
[1756867378615,0.63507584,111500.0,111490.0,0.91422492]
[1756867378848,0.63507584,111500.0,111490.0,0.91717492]
[1756867379476,0.0001259,111500.0,111490.0,0.91717492]
[1756867379715,0.63294584,111500.0,111490.0,0.91717492]
[1756867380113,0.63507584,111500.0,111490.0,0.91717492]
[1756867380317,0.63824584,111500.0,111490.0,0.76034492]
[1756867380527,0.0054259,111500.0,111490.0,0.91210492]
[1756867380732,0.63824584,111500.0,111490.0,0.91210492]
[1756867382036,0.0001259,111500.0,111490.0,0.57713492]
[1756867382244,0.63294584,111500.0,111490.0,0.57713492]
[1756867382457,0.63507584,111500.0,111490.0,0.57713492]
[1756867386455,0.63824584,111500.0,111490.0,0.57418492]
[1756867386673,0.63824584,111500.0,111490.0,0.42034492]
[1756867386863,0.63824584,111500.0,111490.0,0.57206492]
[1756867388927,0.63824584,111500.0,111490.0,0.39267664]
[1756867389165,2.08325791,111500.0,111490.0,0.17666162]
[1756867389397,2.13115734,111500.0,111490.0,0.03095826]
[1756867389610,2.62287734,111500.0,111490.0,0.15572]
[1756867389842,2.62287734,111500.0,111490.0,0.004]
[1756867390062,2.62287734,111500.0,111490.0,0.15572]
[1756867390499,2.62287734,111500.0,111490.0,0.15372]
[1756867390723,2.62387734,111500.0,111490.0,0.15372]
[1756867390946,2.62387734,111500.0,111490.0,0.002]
[1756867391416,0.2003271,111490.0,111480.0,0.15172]
[1756867391640,1.15157701,111490.0,111480.0,0.15172]
[1756867391859,1.15458701,111490.0,111480.0,0.15172]
[1756867392080,1.18155275,111490.0,111480.0,0.15172]
[1756867392794,1.18255275,111490.0,111480.0,0.15172]
[1756867393908,0.86614278,111490.0,111480.0,0.15172]
[1756867396028,1.18255275,111490.0,111480.0,0.15172]
[1756867396703,0.86614278,111490.0,111480.0,0.15172]
[1756867399747,0.84520396,111490.0,111480.0,0.15172]
[1756867401703,0.02998574,111490.0,111480.0,0.33317437]
[1756867401952,0.34437571,111490.0,111480.0,0.42816036]
[1756867402278,0.31740997,111490.0,111480.0,0.42816036]
[1756867402680,0.31740997,111490.0,111480.0,0.45512128]
[1756867403484,0.42295307,111490.0,111480.0,0.45512128]
[1756867404338,0.42295307,111490.0,111480.0,0.45612128]
[1756867404746,0.42195307,111490.0,111480.0,0.45612128]
[1756867406377,0.60336135,111490.0,111480.0,0.45612128]
[1756867406590,0.60637135,111490.0,111480.0,0.12192691]
[1756867406788,0.60637135,111490.0,111480.0,0.27159691]
[1756867407590,0.42698307,111490.0,111480.0,0.45305128]
[1756867407784,0.42397307,111490.0,111480.0,0.45305128]
[1756867408173,0.42397307,111490.0,111480.0,0.45612128]
[1756867409104,0.60336135,111490.0,111480.0,0.45612128]
[1756867410276,0.60336135,111490.0,111480.0,0.45305128]
[1756867410481,0.60637135,111490.0,111480.0,0.45305128]
[1756867411844,0.60336135,111490.0,111480.0,0.45305128]
[1756867412446,0.60336135,111490.0,111480.0,0.45612128]
[1756867413370,0.60336135,111490.0,111480.0,0.45305128]
[1756867414030,0.60336135,111490.0,111480.0,0.45612128]
[1756867414848,0.60134135,111490.0,111480.0,0.45612128]
[1756867415072,0.42195307,111490.0,111480.0,0.45612128]
[1756867415723,0.60134135,111490.0,111480.0,0.45612128]
[1756867415919,0.60637135,111490.0,111480.0,0.45100128]
[1756867416353,0.60637135,111490.0,111480.0,0.45305128]
[1756867419939,0.60336135,111490.0,111480.0,0.45305128]
[1756867420395,0.60660135,111490.0,111480.0,0.45305128]
[1756867420651,0.60660135,111490.0,111480.0,0.29928128]
[1756867420878,0.60660135,111490.0,111480.0,0.27155691]
[1756867423395,0.60336135,111490.0,111480.0,0.45293128]
[1756867425305,0.60660135,111490.0,111480.0,0.27352691]
[1756867425544,1.02855442,111490.0,111480.0,0.001]
[1756867425724,1.20117324,111490.0,111480.0,0.001]
[1756867425926,1.22813898,111490.0,111480.0,0.001]
[1756867426138,1.56813898,111490.0,111480.0,0.001]
[1756867428487,1.56913898,111490.0,111480.0,0.001]
[1756867429183,0.17942047,111470.0,111460.0,0.15168]
[1756867429304,0.60847906,111470.0,111460.0,0.15168]
[1756867429515,0.60676354,111470.0,111460.0,0.15168]
[1756867429714,0.17943656,111460.0,111450.0,0.31623887]
[1756867429914,0.60462963,111460.0,111450.0,0.3803823]
[1756867430123,0.60353963,111460.0,111450.0,0.56180496]
[1756867430372,0.60353963,111460.0,111450.0,0.49126865]
[1756867431005,0.60677963,111460.0,111450.0,0.30996195]
[1756867431218,0.60677963,111460.0,111450.0,0.31296195]
[1756867432450,0.60677963,111460.0,111450.0,0.06936596]
[1756867432622,0.60677963,111460.0,111450.0,0.22100596]
[1756867432882,0.60677963,111460.0,111450.0,0.15776596]
[1756867435539,0.61575115,111460.0,111450.0,0.15476596]
[1756867435748,0.61251115,111460.0,111450.0,0.15673596]
[1756867435957,0.60138963,111460.0,111450.0,0.43311461]
[1756867436366,0.60138963,111460.0,111450.0,0.43111461]
[1756867436573,0.60138963,111460.0,111450.0,0.43011461]
[1756867436986,0.60138963,111460.0,111450.0,0.43211461]
[1756867440328,0.42195307,111460.0,111450.0,0.43211461]
[1756867440549,0.44892291,111480.0,111470.0,0.17942047]
[1756867440763,0.44892291,111480.0,111470.0,0.42521921]
[1756867440764,0.62832728,111480.0,111470.0,0.42521921]
[1756867440978,0.60135744,111480.0,111470.0,0.42795646]
[1756867441795,0.60350744,111480.0,111470.0,0.24853599]
[1756867442006,0.18040437,111480.0,111470.0,0.42795646]
[1756867442217,0.60235744,111480.0,111470.0,0.42795646]
[1756867443922,0.60350744,111480.0,111470.0,0.24552599]
[1756867444117,0.60450744,111480.0,111470.0,0.24552599]
[1756867444554,0.60674744,111480.0,111470.0,0.09191599]
[1756867444755,0.17942047,111470.0,111460.0,0.06324]
[1756867444928,0.60137354,111470.0,111460.0,0.48623255]
[1756867445130,0.60676354,111470.0,111460.0,0.15515599]
[1756867445359,0.60676354,111470.0,111460.0,0.30679599]
[1756867446355,0.60676354,111470.0,111460.0,0.48623255]
[1756867446785,0.60676354,111470.0,111460.0,0.48823255]
[1756867447978,0.60676354,111470.0,111460.0,0.49023255]
[1756867448786,0.60676354,111470.0,111460.0,0.49221255]
[1756867450438,0.60676354,111470.0,111460.0,0.31277599]
[1756867450661,0.60676354,111470.0,111460.0,0.49221255]
[1756867457353,0.60352354,111470.0,111460.0,0.49221255]
[1756867457736,0.60659354,111470.0,111460.0,0.49221255]
[1756867465594,0.4991035,111480.0,111460.0,0.49523255]
[1756867465806,0.22424974,111490.0,111480.0,0.17940437]
[1756867465807,0.18831233,111490.0,111480.0,0.17940437]
[1756867466010,0.97190447,111500.0,111480.0,0.33596437]
[1756867466251,0.17938828,111490.0,111480.0,0.33596437]
[1756867466440,0.18141828,111490.0,111480.0,0.33596437]
[1756867466644,0.19025983,111490.0,111480.0,0.33596437]
[1756867467155,0.50688896,111490.0,111480.0,0.33294437]
[1756867468820,0.51095896,111490.0,111480.0,0.15354]
[1756867469716,0.001,111490.0,111480.0,0.42788036]
[1756867469925,0.31762913,111490.0,111480.0,0.42788036]
[1756867470784,0.001,111490.0,111480.0,0.42788036]
[1756867471142,0.31965913,111490.0,111480.0,0.42788036]
[1756867471929,0.31762913,111490.0,111480.0,0.42788036]
[1756867472948,0.001,111490.0,111480.0,0.42788036]
[1756867473605,0.001,111490.0,111480.0,0.43689393]
[1756867474479,0.001,111490.0,111480.0,1.11697306]
[1756867474926,0.001,111490.0,111480.0,1.14392967]
[1756867476078,0.001,111490.0,111480.0,1.14388967]
[1756867477101,0.001,111490.0,111480.0,0.82726054]
[1756867477748,0.001,111490.0,111480.0,1.14388967]
[1756867479351,0.001,111490.0,111480.0,0.67574054]
[1756867479570,0.001,111490.0,111480.0,0.82722054]
[1756867479793,0.001,111490.0,111480.0,1.14384967]
[1756867488049,0.001,111490.0,111480.0,1.12039967]
[1756867490180,0.001,111490.0,111480.0,0.96891967]
[1756867490386,0.001,111490.0,111480.0,1.12035967]
[1756867490793,0.00309,111490.0,111480.0,0.64927054]
[1756867491041,0.32269913,111490.0,111480.0,0.79873054]
[1756867491233,0.31971913,111490.0,111480.0,0.80071054]
[1756867491445,0.31971913,111490.0,111480.0,0.80373054]
[1756867492320,0.001,111490.0,111480.0,1.12035967]
[1756867492642,0.001,111490.0,111480.0,0.80373054]
[1756867493184,0.001,111490.0,111480.0,1.12035967]
[1756867494434,0.00309,111490.0,111480.0,0.80373054]
[1756867494649,0.00309,111490.0,111480.0,0.80071054]
[1756867494891,0.31971913,111490.0,111480.0,0.80071054]
[1756867495095,0.32269913,111490.0,111480.0,0.64927054]
[1756867495303,0.32269913,111490.0,111480.0,0.80071054]
[1756867495509,0.31762913,111490.0,111480.0,0.80373054]
[1756867495713,0.001,111490.0,111480.0,0.80373054]
[1756867496884,0.00607,111490.0,111480.0,0.80071054]
[1756867497539,0.32269913,111490.0,111480.0,0.79873054]
[1756867497736,0.32269913,111490.0,111480.0,0.64729054]
[1756867497954,0.32269913,111490.0,111480.0,0.79873054]
[1756867498866,0.32269913,111490.0,111480.0,0.80071054]
[1756867499534,0.001,111490.0,111480.0,0.80373054]
[1756867499923,0.001,111490.0,111480.0,1.12035967]
[1756867500145,0.001,111490.0,111480.0,0.80373054]
[1756867501257,0.001,111490.0,111480.0,1.12035967]
[1756867501883,0.00309,111490.0,111480.0,0.64729054]
[1756867502099,0.00309,111490.0,111480.0,0.80067054]
[1756867502307,0.31762913,111490.0,111480.0,0.80369054]
[1756867502543,0.001,111490.0,111480.0,0.80369054]
[1756867505752,0.001,111490.0,111480.0,0.88364616]
[1756867506435,0.31971913,111490.0,111480.0,0.88364616]
[1756867506639,0.31971913,111490.0,111480.0,0.80369054]
[1756867507677,0.00309,111490.0,111480.0,0.80369054]
[1756867507901,0.001,111490.0,111480.0,0.80369054]
[1756867508114,0.001,111490.0,111480.0,1.20027529]
[1756867508330,0.00316,111530.0,111520.0,0.17934002]
[1756867508544,0.32190913,111530.0,111520.0,0.48809776]
[1756867508763,0.32190913,111530.0,111520.0,0.48786601]
[1756867508981,0.31894913,111530.0,111520.0,0.48786601]
[1756867509188,0.32190913,111530.0,111520.0,0.48786601]
[1756867509639,0.31908954,111530.0,111520.0,0.48786601]
[1756867510492,0.32304954,111530.0,111520.0,0.48585601]
[1756867510712,0.32304954,111530.0,111520.0,0.33445601]
[1756867510927,0.63867867,111530.0,111520.0,0.48585601]
[1756867511133,0.81800261,111530.0,111520.0,0.48585601]
[1756867512001,0.81800261,111530.0,111520.0,0.48685601]
[1756867512204,0.81800261,111530.0,111520.0,0.48785601]
[1756867513063,0.81800261,111530.0,111520.0,0.33645601]
[1756867513281,0.81800261,111530.0,111520.0,0.48781601]
[1756867513701,0.63867867,111530.0,111520.0,0.48781601]
[1756867514384,0.63867867,111530.0,111520.0,0.48982601]
[1756867514990,0.81800261,111530.0,111520.0,0.48781601]
[1756867515655,0.63867867,111530.0,111520.0,0.48781601]
[1756867515939,0.81800261,111530.0,111520.0,0.48781601]
[1756867517759,0.63867867,111530.0,111520.0,0.48781601]
[1756867519167,0.81800261,111530.0,111520.0,0.48781601]
[1756867519954,0.18474435,111530.0,111520.0,0.48781601]
[1756867520167,0.81800261,111530.0,111520.0,0.48781601]
[1756867521668,0.81800261,111530.0,111520.0,0.15711599]
[1756867521883,0.81800261,111530.0,111520.0,0.30847599]
[1756867522321,0.18474435,111530.0,111520.0,0.48781601]
[1756867522530,0.81800261,111530.0,111520.0,0.48781601]
[1756867524899,0.81800261,111530.0,111520.0,0.48982601]
[1756867525389,0.00246041,111530.0,111520.0,0.48982601]
[1756867525613,0.42201044,111530.0,111520.0,0.49299601]
[1756867525836,0.00034041,111530.0,111520.0,0.49299601]
[1756867526052,0.42201044,111530.0,111520.0,0.49299601]
[1756867526651,0.42413044,111530.0,111520.0,0.49299601]
[1756867526898,0.42413044,111530.0,111520.0,0.48982601]
[1756867528764,0.42709044,111530.0,111520.0,0.48982601]
[1756867528983,0.60641438,111530.0,111520.0,0.48781601]
[1756867529429,0.42709044,111530.0,111520.0,0.48781601]
[1756867529622,0.60641438,111530.0,111520.0,0.48781601]
[1756867529830,0.42709044,111530.0,111520.0,0.48781601]
[1756867530034,0.60641438,111530.0,111520.0,0.48781601]
[1756867530456,0.00542041,111530.0,111520.0,0.48781601]
[1756867530674,0.42709044,111530.0,111520.0,0.48982601]
[1756867530902,0.60641438,111530.0,111520.0,0.48781601]
[1756867531505,0.60641438,111530.0,111520.0,0.30843599]
[1756867531720,1.02808441,111530.0,111520.0,0.15711599]
[1756867531930,1.02808441,111530.0,111520.0,0.21652]
[1756867532329,0.60641438,111530.0,111520.0,0.21652]
[1756867532531,0.60641438,111530.0,111520.0,0.39586002]
[1756867532945,0.42709044,111530.0,111520.0,0.48978601]
[1756867533147,0.00246041,111530.0,111520.0,0.31044599]
[1756867533310,0.6081299,111530.0,111520.0,0.30843599]
[1756867533510,0.60641438,111530.0,111520.0,0.30843599]
[1756867533714,0.60641438,111530.0,111520.0,0.48777601]
[1756867536453,0.60641438,111530.0,111520.0,0.48978601]
[1756867537792,0.60641438,111530.0,111520.0,0.48777601]
[1756867538255,0.60641438,111530.0,111520.0,0.30843599]
[1756867538473,0.00034041,111530.0,111520.0,0.49295601]
[1756867538689,0.42201044,111530.0,111520.0,0.49295601]
[1756867539317,0.00034041,111530.0,111520.0,0.49295601]
[1756867539529,0.42201044,111530.0,111520.0,0.49295601]
[1756867541047,0.00034041,111530.0,111520.0,0.49295601]
[1756867541261,0.00034041,111530.0,111520.0,1.27765604]
[1756867541469,0.00034041,111530.0,111520.0,1.35761166]
[1756867541687,0.00034041,111530.0,111520.0,1.25598601]
[1756867541897,0.00034041,111530.0,111520.0,1.28293281]
[1756867542103,0.00034041,111530.0,111520.0,1.3959301]
[1756867542307,0.00034041,111530.0,111520.0,1.47633498]
[1756867542510,0.00034041,111530.0,111520.0,1.36333769]
[1756867542721,0.00034041,111530.0,111520.0,1.30460284]
[1756867543135,0.00034041,111530.0,111520.0,1.28293281]
[1756867543338,0.00034041,111530.0,111520.0,1.36329131]
[1756867543568,0.00034041,111530.0,111520.0,0.97226479]
[1756867543966,0.00034041,111530.0,111520.0,1.37226479]
[1756867550496,1e-08,111530.0,111520.0,1.86487364]
[1756867552562,1e-08,111530.0,111520.0,1.91487364]
[1756867552946,1e-08,111530.0,111520.0,2.33654367]
[1756867553415,1e-08,111530.0,111520.0,2.36918246]
[1756867553573,1e-08,111530.0,111520.0,2.36818246]
[1756867554021,1e-08,111530.0,111520.0,2.36718246]
[1756867554341,1e-08,111530.0,111520.0,2.37218246]
[1756867554756,1e-08,111530.0,111520.0,2.22086246]
[1756867555169,1e-08,111530.0,111520.0,1.95255243]
[1756867555360,1e-08,111530.0,111520.0,1.95355243]
[1756867556006,1e-08,111530.0,111520.0,1.95255243]
[1756867556225,1e-08,111530.0,111520.0,1.95555243]
[1756867556457,1e-08,111530.0,111520.0,1.95515243]
[1756867556929,1e-08,111530.0,111520.0,1.5334824]
[1756867557180,1e-08,111530.0,111520.0,1.95515243]
[1756867557660,1e-08,111530.0,111520.0,1.95511243]
[1756867557997,0.0002,111550.0,111540.0,0.64024669]
[1756867558206,0.0002,111550.0,111540.0,0.9937354]
[1756867558402,0.0002,111550.0,111540.0,1.1470154]
[1756867558612,0.0002,111550.0,111540.0,1.52922211]
[1756867558818,0.0002,111550.0,111540.0,1.57922211]
[1756867559231,0.0002,111550.0,111540.0,1.58022211]
[1756867559711,0.00229,111550.0,111540.0,1.53018211]
[1756867559910,0.00523,111550.0,111540.0,1.50397329]
[1756867560113,0.00523,111550.0,111540.0,1.50597329]
[1756867560343,0.00523,111550.0,111540.0,1.50601329]
[1756867560524,0.00523,111550.0,111540.0,1.50806329]
[1756867561243,0.00523,111550.0,111540.0,1.45806329]
[1756867561488,0.00523,111550.0,111540.0,1.50806329]
[1756867561693,0.00229,111550.0,111540.0,1.50806329]
[1756867562114,0.00523,111550.0,111540.0,1.50593329]
[1756867562720,0.00523,111550.0,111540.0,1.50798329]
[1756867563390,0.00229,111550.0,111540.0,1.51120329]
[1756867563605,0.0002,111550.0,111540.0,1.93287332]
[1756867564628,0.00229,111550.0,111540.0,1.50798329]
[1756867564830,0.0002,111550.0,111540.0,1.46120329]
[1756867564986,0.0002,111550.0,111540.0,1.51120329]
[1756867565410,0.00229,111550.0,111540.0,1.51120329]
[1756867565632,0.00229,111550.0,111540.0,1.50798329]
[1756867565846,0.00523,111550.0,111540.0,1.50593329]
[1756867566279,0.00229,111550.0,111540.0,1.50798329]
[1756867568067,0.00229,111550.0,111540.0,1.51120329]
[1756867569014,0.0002,111550.0,111540.0,1.51120329]
[1756867569418,0.0002,111550.0,111540.0,1.44711057]
[1756867570678,0.0002,111550.0,111540.0,1.52722648]
[1756867570944,0.0002,111550.0,111540.0,1.94889651]
[1756867571150,0.0002,111550.0,111540.0,1.52722648]
[1756867571554,0.00227,111550.0,111540.0,1.52722648]
[1756867571708,0.0002,111550.0,111540.0,1.52722648]
[1756867574069,0.0002,111550.0,111540.0,1.94889651]
[1756867574726,0.0002,111550.0,111540.0,1.52722648]
[1756867576818,0.0002,111550.0,111540.0,1.47722648]
[1756867577060,0.0002,111550.0,111540.0,1.52722648]